Cogmind - Beta 16 @@@ ROGUE MODE // 2025.12.21 @ 16:01:23 Player: ThE chow Result: Destroyed by 10-EKU(R) with Subdweller Machine Gun Performance ------------- Evolutions (0) 0 Regions Visited (2) 400 Robots Destroyed (35) 175 Value Destroyed (917) 917 Prototype IDs (2) 40 Alien Tech Used (0) 0 Bonus (-18) -18 TOTAL SCORE: 1514 Bonus ------- Friendly Fire -18 Cogmind --------- Core Integrity 0/250 Matter 275/300 Energy 98/100 System Corruption 5% Temperature Cool (0) Movement Rolling (129) Ox2 Location -10/Subcaves Parts ------- > --- POWER (1) -------- (None) > --- PROPULSION (2) --- Compact Wheel Subdweller Monowheel > --- UTILITY (2) ------ Huge Storage Unit Subdweller Optics > --- WEAPON (2) ------- Subdweller Shrapnel Launcher Flail > --- INVENTORY (25) --- Subdweller Power Source Light Nuclear Core Flight Unit Flight Unit Flight Unit Flight Unit Flight Unit High-capacity Matter Pod (200) Visual Processing Unit ECM Suite Utility Shielding Utility Shielding Light Armor Plating Scrap Shield Hacking Suite EM Pulse Gun Assault Rifle Battle Rifle Subdweller Machine Gun Improved Light Cannon Improved Light Cannon Welding Torch Enhanced Flamer Flail Peak State ------------ > --- POWER ------------ Light Nuclear Core > --- PROPULSION ------- Subdweller Monowheel Subdweller Monowheel > --- UTILITY ---------- Huge Storage Unit Subdweller Optics > --- WEAPON ----------- Subdweller Shrapnel Launcher Flail > --- INVENTORY -------- Ion Engine Light Nuclear Core Flight Unit Flight Unit Flight Unit Flight Unit Flight Unit High-capacity Matter Pod Visual Processing Unit ECM Suite Utility Shielding Utility Shielding Light Armor Plating Scrap Shield Hacking Suite EM Pulse Gun Assault Rifle Battle Rifle Subdweller Machine Gun Improved Light Cannon Improved Light Cannon Welding Torch Flail [Rating: 17] Favorites ----------- Power Light Nuclear Core Engine Light Ion Engine Power Core Light Nuclear Core Propulsion Wheel Wheel Wheel Utility Structural Scanner Device Structural Scanner Storage Huge Storage Unit Processor Terrain Scan Processor Weapon Assault Rifle Ballistic Gun Assault Rifle Ballistic Cannon Light Cannon Launcher Subdweller Shrapnel Launcher Special Weapon Welding Torch Impact Weapon Flail Build | -11 -10 -10 ------- Run | Yrd Mat Sub Slots Evolved . | . . . Power . | . . . Propulsion . | . . . Utility . | . . . Weapon . | . . . Parts Attached 30 | 5 15 10 Power 3 | 1 2 . Engine 1 | 1 . . Core 2 | . 2 . Reactor . | . . . Propulsion 9 | 2 1 6 Treads . | . . . Leg . | . . . Wheel 9 | 2 1 6 Hover . | . . . Flight . | . . . Utility 8 | . 6 2 Device 3 | . 1 2 Storage 4 | . 4 . Processor 1 | . 1 . Hackware . | . . . Protection . | . . . Artifact . | . . . Weapon 10 | 2 6 2 Energy Gun . | . . . Energy Cannon . | . . . Ballistic Gun 3 | 2 1 . Ballistic Cannon 4 | . 4 . Launcher 1 | . . 1 Special Weapon 1 | . 1 . Impact Weapon 1 | . . 1 Slashing Weapon . | . . . Piercing Weapon . | . . . Special Melee Weapon . | . . . Unidentified Prototypes . | . . . Parts Lost 4 | . . 4 Power 1 | . . 1 Propulsion 2 | . . 2 Utility 1 | . . 1 Weapon . | . . . Highest Loss Streak 1 | . . 1 To Critical Strikes . | . . . Average Backups 18 | . 15 23 Power 1 | . 1 2 Propulsion 5 | . 5 5 Utility 6 | . 5 8 Weapon 4 | . 2 6 Tool/Special . | . . . Unused Backups 23 | . 2 21 Power 2 | . . 2 Propulsion 6 | . 1 5 Utility 10 | . 1 9 Weapon 5 | . . 5 Tool/Special . | . . . Average Slot Usage (%) 96 | . 96 96 Core 13 | . 13 13 Wheel 26 | . 28 25 Device 12 | . 11 13 Storage 13 | . 12 14 Ballistic Gun 7 | . 13 . Ballistic Cannon 9 | . 14 2 Launcher 5 | . . 12 Impact Weapon 5 | . . 12 Peak Build Rating 17 | 5 14 17 Average Rating 12 | 3 10 15 On Entrance 6 | . 5 14 Avg Prop Armor Cover (%) 5 | . . 5 Naked Turns . | . . . Heaviest Build 97 | 6 94 97 Greatest Support 40 | 20 20 40 Greatest Overweight (x) 4 | . 4 4 Average Overweight (x) 2 | . 1 2 Largest Inventory Capacity 25 | 5 25 25 Average Capacity 20 | 5 18 25 Most Carried 25 | 2 25 25 Average Carried 18 | . 15 24 Final Capacity 25 | 5 25 25 Final Carried 25 | . 23 25 Class Distribution -------------------- 89% | Mutant 10% | Scavenger-Mutant Dominant Class ---------------- Mutant | -10/Materials Mutant | -10/Subcaves Resources | -11 -10 -10 ----------- Run | Yrd Mat Sub Matter Collected 1344 | 262 698 384 Remotely . | . . . Salvage Created 882 | 44 703 135 Parts 63 | 2 44 17 Haulers Intercepted 1 | . 1 . Recyclers Shooed 2 | . 2 . Parts Field Recycled . | . . . Retrieved Matter . | . . . Parts Self-Destructed 22 | . . 22 Prevented . | . . . Parts Restored . | . . . Kills | -11 -10 -10 ------- Run | Yrd Mat Sub Combat Hostiles Destroyed 24 | 1 13 10 Guns 8 | 1 7 . Cannons 6 | . 6 . AOE 10 | . . 10 Classes Destroyed 9 | 1 6 2 Builder 3 | . 3 . Hauler 1 | . 1 . Recycler 2 | . 2 . Operator 1 | . 1 . Turret 1 | . . 1 Watcher 3 | . 3 . Swarmer 4 | . 2 2 Grunt 12 | 1 11 . Subdweller 8 | . . 8 Best Kill Streak 8 | 1 4 8 Combat Bots Only 8 | 1 3 8 Max Kills in Single Turn 4 | 1 2 4 Gunslinging . | . . . Exploded 4 | . . 4 Melee . | . . . Uniques/NPCs Destroyed . | . . . Combat | -11 -10 -10 -------- Run | Yrd Mat Sub Hostile Shots Fired 66 | 3 38 25 Missed 19 | 1 10 8 Hits 47 | 2 28 17 Projectile 47 | 2 28 17 Critical Strikes 2 | . 1 1 Damage Taken 1042 | 20 315 707 Core 266 | . 62 204 Absorbed by Shields . | . . . Regen/Repaired (Parts) 26 | . 26 . Core Remaining (%) 100 | 100 . . Volleys Fired 69 | 3 53 13 Largest 2 | 2 2 2 Hottest 66 | 40 50 66 Shots Fired 127 | 6 106 15 Gun 61 | 6 55 . Cannon 56 | . 51 5 Launcher 10 | . . 10 Special . | . . . Kinetic 127 | 6 106 15 Thermal . | . . . Explosive . | . . . Electromagnetic . | . . . Robot Hit Streak 6 | 3 6 6 Robot Miss Streak 4 | 3 4 . Penetration Max . | . . . Secondary Targets . | . . . Shots Hit Robots 65 | 3 57 5 Core Hits 54 | 2 33 19 Critical Kills . | . . . Critical Parts Destroyed . | . . . Critical Strikes 1 | . 1 . Blast 1 | . 1 . Melee Attacks 7 | . . 7 Impact 7 | . . 7 Slashing . | . . . Piercing . | . . . Sneak Attacks . | . . . Combat Hostiles . | . . . Follow-up Attacks . | . . . Damage Inflicted 2453 | 27 920 1506 Guns 422 | 27 395 . Cannons 518 | . 518 . Explosions 1506 | . . 1506 Melee . | . . . Ramming 7 | . 7 . Kinetic 2446 | 27 913 1506 Thermal . | . . . Explosive . | . . . Electromagnetic . | . . . Impact . | . . . Slashing . | . . . Piercing . | . . . Highest Corruption 5 | . . 5 Average Corruption 4 | . . 4 Corruption Purged . | . . . Corruption Blocked . | . . . Effects 24 | . . 24 Message Errors 10 | . . 10 Matter Fused 6 | . . 6 Heat Flow Errors 4 | . . 4 Energy Discharges 1 | . . 1 Data Loss (minor) 2 | . . 2 Data Loss (major) 1 | . . 1 Overload Shots . | . . . Overflow Damage . | . . . Projectiles . | . . . Explosions . | . . . Melee . | . . . Knockbacks 4 | . 4 . Impact . | . . . Kinetic 4 | . 4 . Secondary . | . . . Self-Inflicted Damage 3 | . 3 . Shots . | . . . Rammed 2 | . 2 . Targets Rammed 2 | . 2 . Kicked . | . . . Crushed . | . . . Highest Temperature 242 | 6 14 242 Average Temperature 28 | 6 5 95 Received Heat Transfer 222 | 12 147 63 Siege Activations . | . . . Martial Activations . | . . . Shielding Activations . | . . . Robots Disrupted . | . . . Combat Hostiles . | . . . Robots Corrupted . | . . . Combat Hostiles . | . . . Parts Fried . | . . . Impact Corruptions . | . . . Robots Melted . | . . . Combat Hostiles . | . . . Parts Melted . | . . . Heat Transferred . | . . . Parts Sabotaged . | . . . Parts Stolen . | . . . Parts Stripped . | . . . Power Chain Reactions . | . . . Alert | -11 -10 -10 ------- Run | Yrd Mat Sub Maximum Alert Level . | . . . Low Security (%) 100 | 100 100 . Level 1 . | . . . Level 2 . | . . . Level 3 . | . . . Level 4 . | . . . Level 5 . | . . . High Security . | . . . Max Security . | . . . Peak Influence 123 | 20 123 . Initial . | . . . Average 37 | 3 39 . Influence Increases 509 | 20 399 90 Destroy 0b10 Robot/C 340 | 20 260 60 Destroy 0b10 Robot/NC 50 | . 50 . Destroy Leader 78 | . 78 . Successful Hack 10 | . 10 . Destroy Structure 1 | . 1 . Lose Combat Pursuer 30 | . . 30 Influence Decreases 427 | 20 399 8 Time Decay 427 | 20 399 8 Squads Dispatched 4 | . 4 . Investigation 2 | . 2 . Extermination . | . . . Reinforcement 2 | . 2 . Assault . | . . . Garrison . | . . . Intercept . | . . . Searches Triggered . | . . . Construction Impeded . | . . . Haulers Reinforced . | . . . Active Scanning Responses . | . . . Cargo Convoy Interrupts . | . . . Stealth | -11 -10 -10 --------- Run | Yrd Mat Sub Distress Signals 1 | . 1 . Communications Jammed . | . . . Distress Signals . | . . . Times Spotted 47 | 1 20 26 Peak Tracking Total 9 | 1 4 9 Tactical Retreats 1 | . . 1 Traps | -11 -10 -10 ------- Run | Yrd Mat Sub Traps Triggered 1 | . 1 . Indirectly . | . . . Trap Hack Attempts . | . . . Triggered . | . . . Disarmed . | . . . Reprogrammed . | . . . Reused . | . . . Traps Extracted . | . . . Installed . | . . . Triggered . | . . . Machines | -11 -10 -10 ---------- Run | Yrd Mat Sub Machines Disabled 1 | . . 1 Max in Single Turn 1 | . . 1 Machines Repaired . | . . . Machines Dismantled . | . . . Machines Sabotaged . | . . . Overloaded Fab Kills . | . . . Hacking | -11 -10 -10 --------- Run | Yrd Mat Sub Machines Accessed 6 | . 6 . Terminals 3 | . 3 . Fabricators . | . . . Repair Stations 1 | . 1 . Recycling Units 2 | . 2 . Scanalyzers . | . . . Garrison Access . | . . . Total Hacks 17 | . 17 . Successful 11 | . 11 . Failed 6 | . 6 . Catastrophic . | . . . Database Lockouts . | . . . Manual 4 | . 4 . Terminals 10 | . 10 . Fabricators . | . . . Repair Stations 2 | . 2 . Recycling Units 5 | . 5 . Scanalyzers . | . . . Garrison Access . | . . . Terminal Hacks 5 | . 5 . Prototype ID Bank 1 | . 1 . Emergency Access Points 1 | . 1 . Alert Level 3 | . 3 . Fabricator Hacks . | . . . Repair Station Hacks 2 | . 2 . Scan Component 1 | . 1 . Repair 1 | . 1 . Recycling Unit Hacks 4 | . 4 . Report Inventory 3 | . 3 . Retrieve Components 1 | . 1 . Scanalyzer . | . . . Garrison Access Hacks . | . . . Unauthorized Hacks . | . . . Terminals . | . . . Fabricators . | . . . Repair Stations . | . . . Recycling Units . | . . . Scanalyzers . | . . . Garrison Access . | . . . Data Cores Recovered . | . . . Used . | . . . Hacking Detections 5 | . 5 . Full Trace Events 3 | . 3 . Feedback Events . | . . . Feedback Blocked . | . . . Robot Schematics Acquired . | . . . Robots Built . | . . . Authchips . | . . . Time . | . . . Total Robot Build Rating . | . . . Part Schematics Acquired . | . . . Parts Built . | . . . Authchips . | . . . Time . | . . . Total Part Build Rating . | . . . Part Studies Acquired . | . . . Parts Repaired 1 | . 1 . Time 38 | . 38 . Parts Recycled . | . . . Recycled Matter . | . . . Retrieved Matter . | . . . Retrieved Components 9 | . 9 . Parts Scanalyzed . | . . . Part Schematics Acquired . | . . . Parts Damaged . | . . . Bothacking | -11 -10 -10 ------------ Run | Yrd Mat Sub Used RIF Installer . | . . . Robots Hacked . | . . . Non-combat . | . . . Combat . | . . . Robot Hacks Applied . | . . . Relay Couplers Released . | . . . Fabnet Peak Effective % . | . . . Robots Rewired . | . . . Allies Hacked . | . . . Hacks Repelled . | . . . Allies | -11 -10 -10 -------- Run | Yrd Mat Sub Total Allies . | . . . Largest Group . | . . . Highest-Rated Group . | . . . Highest-Rated Ally . | . . . Total Orders . | . . . Ally Attacks . | . . . Total Damage . | . . . Kills . | . . . Allies Corrupted . | . . . Allies Melted . | . . . Intel | -11 -10 -10 ------- Run | Yrd Mat Sub Active Infowar (turns) 2575 | . 1433 1142 Optics 893 | . . 893 Structural 1682 | . 1433 249 Robot Analysis Total . | . . . Derelict Logs Recovered 1 | . . 1 Drone Launches . | . . . Drone Recoveries . | . . . Exploration | -11 -10 -10 ------------- Run | Yrd Mat Sub Turns Passed 3028 | 88 1718 1222 Spaces Moved 2254 | 84 1333 837 Core 19 | 19 . . Treads . | . . . Legs . | . . . Wheels 2235 | 65 1333 837 Hover . | . . . Flight . | . . . Fastest Speed 50 | 50 80 129 Average Speed 117 | 73 108 135 Slowest Speed 150 | 80 140 150 Overloaded Moves . | . . . Propulsion Burnouts . | . . . Robots Hopped . | . . . Potential Cave-ins 22 | . . 22 Cave-ins Triggered 2 | . . 2 Exploration Rate (%) 47 | 5 94 42 Regions Visited 2 Branch Regions 1 Pre-discovered Areas . | . . . Known Exits Taken . | . . . Unknown Exits Taken 2 | 1 1 . Scrap Searched 2 | . . 2 Spaces Dug 2 | . . 2 Terrain Destroyed 147 | . . 147 Melee 2 | . . 2 Projectile . | . . . AOE 145 | . . 145 Terrain Rammed . | . . . Walls Destroyed . | . . . Machines Disabled . | . . . Actions | -11 -10 -10 --------- Run | Yrd Mat Sub Total 2521 | 104 1510 907 Wait 48 | 8 33 7 Move 2250 | 83 1332 835 Hop . | . . . Pick Up 66 | 5 44 17 Fast Attach . | . . . Attach 35 | 5 19 11 Detach 12 | . 10 2 Swap . | . . . Drop 30 | . 17 13 Fire 69 | 3 53 13 Melee 7 | . . 7 Ram 2 | . 2 . Kick . | . . . Crush . | . . . Escape Stasis 2 | . . 2 Rewire . | . . . Trap . | . . . Miscellaneous . | . . . Route ------- -11/Scrapyard -10/Materials (discovered 6 exits: [*Mat x3] / [*Min x2] / [*Sub]) -10/Subcaves (discovered 3 exits: *Mat x2 / [*Rec]) History --------- Turn | Location | Event 2 | -11/Scrapyard | Met Revision 17 42 | -11/Scrapyard | Discovered new exit (range 8) 89 | -11/Scrapyard | Entered Materials 170 | -10/Materials | Discovered new exit (range 8) 280 | -10/Materials | Discovered new exit (range 10) 310 | -10/Materials | Build established: Mutant 739 | -10/Materials | Repaired Lgt. Nuclear Core? 796 | -10/Materials | Discovered new exit (range 9) 933 | -10/Materials | Discovered new exit (range 5) 952 | -10/Materials | Discovered new exit (range 15) 1580 | -10/Materials | Discovered new exit (range 6) 1807 | -10/Materials | Entered Subcaves 1808 | -10/Subcaves | Approached by a straggling Scientist 1845 | -10/Subcaves | Shifting Twisted Machinery released Sub. Shrapnel Launcher 1862 | -10/Subcaves | Shifting Twisted Machinery released Sub. Machine Gun 1954 | -10/Subcaves | Ambushed by swarm of Subdwellers 1957 | -10/Subcaves | Ambushed by Subdwellers from Twisted Machinery 1957 | -10/Subcaves | Ambushed by Subdwellers from Twisted Machinery 1957 | -10/Subcaves | Ambushed by Subdwellers from Twisted Machinery 1961 | -10/Subcaves | Core integrity fell below 50% 1965 | -10/Subcaves | Ambushed by Subdweller buried in earth 1968 | -10/Subcaves | Ambushed by Subdweller buried in earth 1968 | -10/Subcaves | Ambushed by Subdweller buried in earth 1969 | -10/Subcaves | Ambushed by Subdweller buried in earth 1984 | -10/Subcaves | Destroyed 8 combat bots 2058 | -10/Subcaves | Crushed by falling debris 2059 | -10/Subcaves | Core integrity fell below 20% 2121 | -10/Subcaves | Crushed by falling debris 2207 | -10/Subcaves | Ambushed by Subdweller buried in earth 2237 | -10/Subcaves | Discovered new exit (range 18) 2262 | -10/Subcaves | Disturbed a concealed Subdweller 2577 | -10/Subcaves | A swath of the cavern ceiling suddenly collapsed 2783 | -10/Subcaves | Identified exit to Materials 2967 | -10/Subcaves | Shifting Twisted Machinery released Riot Gun 3010 | -10/Subcaves | Discovered new exit (range 9) 3029 | -10/Subcaves | Destroyed by 10-EKU(R) with Subdweller Machine Gun Last Messages --------------- SW-D7U(R) suffers critical hit (Destroy). SW-D7U(R) destroyed. System corrupted: Component data lost. LL-WXC(R) destroyed. System corrupted: Heat flow error (+213). Acquired derelict log, extracted data. Loading 1 Subcaves exit... System corrupted: Matter fused (-7). NS3RDQPNXNVICJ9E E T7 Acquired 5 matter. System corrupted: Heat flow error (+278). GJPEFCLDS6TOHGS&KXSVX Riot Gun falls loose from the Twisted Machinery. WJ9O352E& 7N N%0 NCTUUG& IHKEX Acquired Enh. Flamer. Lgt. Nuclear Core destroyed. S-10 Pest destroyed. System corrupted: Matter fused (-5). EXIT=FOUND [Achievement: First Step to Greatness] Map ----- +----------------------------------------------------+ | ???????# ?????????????????????????????????????? | | ??????## ???????????????????????????????????? | | ??????# """??????????????##?????????????????? | | ??????# """????????????? ##????????????????? | | ??????? " ???????????? ##???????????????? | | ???????? ???????????# #???????????????? | | ?????????# #?####?#### #????????????????? | | ????????## [## ### # #????????????????? | | ???????##""" ""#" """ #????????????????? | | ???????# " """"""" #????????????????????? | | ???????# """"" #### #????????????????????? | | #??????### #??# #????????????????????? | | #####????## < #??## ###??????????????????? | | ## ###???# #?## ##?????????????????? | | ##??# ##?# ###???????????????? | | #??# #??# ##??????????????? | | ## ##?#### #??## #??????????????? | | ##### ###??### #???## #??????????????? | | ????# ##???# #????## ##??????????????? | | ##### ##?## ##????##### ##??????????????? | | # ### #????????# ##?????????????? | | # #??????### #?????????????? | | #?????## #?????????????? | | ## # ####?????# g h #?????????????? | | #######?#" ????# ##?????????????? | | #####???????#" ??#@ ##??????????????? | | # #???????????#" # ##g #???????????????? | | ## #???????????#"" % ### #???????????????? | | ?# ##?????????#< % & ####???????????????? | | ## ####??????## ! & #?????????????????? | | # ##??????# ; = #?????????????????? | | ##?????# ;#%* ?????????????????? | | """#?????# ;? ????????????????? | | ##"""#?????##"";;;;? ???????????????? | | ######?####??????##"; ;? ??????????????? | | #????????????????? ####? R #?????????????? | | #???????????????? ????? ##?????????????? | | ##??????????????? ????? #??????????????? | | ????????????????""##?????? #??????????????? | | ???????????????? "???????? ### #??????????????? | | ???????????????""?????????##??##??????????????? | | ??????????????????????????????????????????????? | | ??????????????????????????????????????????????? | | ??????????????????????????????????????????????? | | ??????????????????????????????????????????????? | | ??????????????????????????????????????????????? | | ??????????????????????????????????????????????? | | ??????????????????????????????????????????????? | | ??????????????????????????????????????????????? | | ??????????????????????????????????????????????? | +----------------------------------------------------+ Best States ------------- Heat Dissipation 25 Energy Generation 14 Energy Capacity 160 Matter Stores 300 Matter Capacity 300 Sight Range 21 Terrain Scan Density 85 Evasion (%) 50 Item Schematics ----------------- None Robot Schematics ------------------ None Fabricated ------------ Nothing Repaired ---------- Lgt. Nuclear Core | 48% | -10/Materials Studied --------- None Alien Tech Used ----------------- None Achievements -------------- DATA ERROR: Steam Global Achievement% Do Not Disturb First Step to Greatness For Emergencies Only Loot Pinata Organ Harvest Part-time Mechanic Spot Them First Uninvited Guest Unlikely Earthworm Challenges ------------ None Game ------ Seed LinkedArmorMonowheel Manual? 0 Play Time 00:56:39 Cumulative 1.5 hours Start 2025.12.21 @ 15:03:20 End 2025.12.21 @ 16:01:23 Sessions 1 Manual Loads 0 Difficulty Rogue Special Mode None Game No. 2 Rogue 2 Adventurer 0 Explorer 0 Win Type - Total 0 Types 0/0/0/0/0/0/0/0/0/0 Lore% 0 Gallery% 2 Achievement% 2 Wizard Run 0 Options --------- Layout 1 ASCII 0 Keyboard 1 Movement Numpad Keybinds 0 Fullscreen 1 Font 32/SmallcapsGlow Map View 50x35 Zoom Use 2% Tactical HUD 0 Map Filters NONE Filters NONE Steam 1 RUN: 88cb4df3-d5c5-415c-ae32-67cd6f71b836